bitfinex/quotes_SOLUSD_20251019
["timestamp","ask_amount","ask_price","bid_price","bid_amount"]
[1760890502547,2.29508606,190.62,190.58,0.69]
[1760890503435,2.29508606,190.62,190.59,5.24686499]
[1760890503640,2.29508606,190.61,190.6,0.69]
[1760890504742,2.29508606,190.62,190.6,5.93658617]
[1760890504932,2.29508606,190.62,190.61,0.69]
[1760890505644,2.29508606,190.63,190.61,0.69]
[1760890505823,2.29508606,190.63,190.62,0.69]
[1760890508047,2.96508606,190.63,190.58,5.24710619]
[1760890508243,2.29508606,190.61,190.59,0.69]
[1760890508446,2.29508606,190.6,190.58,5.24710619]
[1760890508622,2.29508606,190.6,190.59,0.69]
[1760890509026,2.29508606,190.61,190.59,0.69]
[1760890509637,2.29508606,190.63,190.6,0.69]
[1760890509843,25.17508606,190.65,190.6,0.69]
[1760890510036,25.17508606,190.65,190.61,5.24631446]
[1760890510243,2.29508606,190.64,190.62,0.69]
[1760890510438,25.17508606,190.65,190.63,0.69]
[1760890510954,2.29508606,190.64,190.63,0.69]
[1760890511752,2.98508606,190.64,190.61,0.72]
[1760890511950,2.29508606,190.63,190.6,5.24658971]
[1760890512146,2.29508606,190.62,190.6,5.96658971]
[1760890513556,2.29508606,190.63,190.6,5.96658971]
[1760890515047,0.69,190.64,190.6,5.96658971]
[1760890515248,2.29508606,190.63,190.6,5.96658971]
[1760890515758,2.29508606,190.62,190.59,5.96685537]
[1760890516365,3.00508606,190.61,190.57,0.72]
[1760890516546,3.00508606,190.61,190.56,5.24769101]
[1760890516547,3.00508606,190.61,190.58,0.72]
[1760890517332,3.00508606,190.6,190.57,5.24721311]
[1760890517735,2.29508606,190.59,190.57,5.24721311]
[1760890518248,2.29508606,190.59,190.57,5.96721311]
[1760890518751,3.00508606,190.58,190.55,0.1]
[1760890518955,2.29508606,190.56,190.55,0.1]
[1760890519860,0.71,190.57,190.55,0.1]
[1760890520055,2.29508606,190.56,190.55,0.1]
[1760890520364,3.00508606,190.56,190.55,0.1]
[1760890522263,2.29508606,190.56,190.55,0.1]
[1760890522765,2.29508606,190.57,190.55,0.1]
[1760890523065,23.59,190.59,190.55,5.34796302]
[1760890523245,25.17508606,190.59,190.56,0.72]
[1760890523451,2.29508606,190.59,190.57,0.72]
[1760890523652,2.29508606,190.59,190.56,5.24758956]
[1760890523868,3.00508606,190.59,190.56,5.24758956]
[1760890524049,2.29508606,190.59,190.56,5.96758956]
[1760890525154,2.29508606,190.59,190.57,0.72]
[1760890525571,2.29508606,190.6,190.57,0.72]
[1760890526268,2.29508606,190.6,190.58,0.72]
[1760890527064,2.29508606,190.6,190.57,0.72]
[1760890527247,2.29508606,190.58,190.56,5.24758956]
[1760890527449,2.29508606,190.58,190.56,5.96758956]
[1760890527946,2.29508606,190.59,190.56,5.96758956]
[1760890528146,2.29508606,190.59,190.56,5.24758956]
[1760890528441,2.29508606,190.6,190.57,5.96740997]
[1760890528848,3.00508606,190.6,190.57,5.96740997]
[1760890530264,5.2461672,190.62,190.57,5.96740997]
[1760890530475,191.8,190.81,190.59,2.29508606]
[1760890530476,2.29508606,190.65,190.59,2.29508606]
[1760890530661,0.71,190.62,190.59,2.29508606]
[1760890531166,3.00508606,190.64,190.59,3.01508606]
[1760890531364,3.00508606,190.64,190.6,0.72]
[1760890531749,0.71,190.63,190.59,5.24660861]
[1760890532069,25.88508606,190.65,190.6,3.01508606]
[1760890532369,23.59,190.65,190.61,0.72]
[1760890532666,22.88,190.65,190.62,4.30076013]
[1760890532976,22.88,190.65,190.62,0.72]
[1760890533166,23.59,190.65,190.62,0.72]
[1760890534956,27.17076013,190.65,190.62,0.72]
[1760890535474,27.17076013,190.65,190.61,5.24615892]
[1760890535661,27.17076013,190.65,190.61,5.96615892]
[1760890535862,4.29076013,190.65,190.61,5.96615892]
[1760890536375,3.58076013,190.64,190.61,5.96615892]
[1760890537076,4.29076013,190.64,190.61,5.96615892]
[1760890537391,3.58076013,190.64,190.61,5.96615892]
[1760890539574,0.71,190.63,190.6,5.24658971]
[1760890539777,3.58076013,190.64,190.6,5.24658971]
[1760890539967,0.71,190.63,190.6,5.24658971]
[1760890540160,4.29076013,190.62,190.57,3.58076013]
[1760890540354,0.71,190.61,190.57,5.96741564]
[1760890541054,0.71,190.61,190.58,0.72]
[1760890541578,0.71,190.61,190.58,5.96699405]
[1760890541781,4.29076013,190.62,190.58,5.96699405]
[1760890542462,5.24558858,190.64,190.59,0.72]
[1760890542661,4.29076013,190.63,190.59,5.96678534]
[1760890543458,3.58076013,190.62,190.59,5.96678534]
[1760890544285,0.68,190.62,190.59,5.96678534]
[1760890544658,4.26076013,190.62,190.59,5.96678534]
[1760890544979,4.26076013,190.62,190.57,5.93741564]
[1760890545168,4.26076013,190.62,190.58,0.69]
[1760890545355,4.26076013,190.62,190.59,0.69]
[1760890545555,3.58076013,190.6,190.57,5.24741564]
[1760890545769,0.68,190.64,190.58,4.27076013]
[1760890545981,3.58076013,190.64,190.59,0.69]
[1760890546274,3.58076013,190.64,190.59,4.27076013]
[1760890546457,4.26076013,190.63,190.59,0.69]
[1760890546959,4.26076013,190.63,190.59,5.93665053]
[1760890548454,3.58076013,190.63,190.58,8.82790043]
[1760890548660,26.46076013,190.65,190.6,0.69]
[1760890548978,27.14076013,190.65,190.61,0.69]
[1760890549373,27.14076013,190.65,190.62,0.69]
[1760890549585,27.14076013,190.65,190.6,0.69]
[1760890549762,27.14076013,190.65,190.61,0.69]
[1760890549958,27.14076013,190.65,190.59,3.58076013]
[1760890550268,3.58076013,190.64,190.6,0.69]
[1760890550473,22.88,190.65,190.61,5.24631446]
[1760890550781,4.26076013,190.65,190.62,0.69]
[1760890550967,3.58076013,190.64,190.62,0.69]
[1760890551760,3.58076013,190.64,190.6,5.24658971]
[1760890551984,3.58076013,190.64,190.61,0.69]
[1760890552695,4.26076013,190.64,190.61,0.69]
[1760890552882,3.58076013,190.63,190.6,5.93658971]
[1760890553385,3.58076013,190.63,190.6,5.24658971]
[1760890553684,3.58076013,190.63,190.61,0.69]
[1760890555688,3.58076013,190.63,190.61,5.93629037]
[1760890556687,4.26076013,190.64,190.61,5.93629037]
[1760890559163,4.26076013,190.64,190.6,0.69]
[1760890559490,3.58076013,190.64,190.6,0.69]
[1760890559787,4.26076013,190.63,190.59,5.24686499]
[1760890559977,0.68,190.62,190.59,5.93686499]
[1760890560287,3.58076013,190.63,190.6,0.69]
[1760890560467,4.26076013,190.63,190.6,0.69]
[1760890561190,3.58076013,190.65,190.6,0.69]
[1760890561370,4.26076013,190.65,190.6,0.69]
[1760890562286,4.26076013,190.65,190.61,5.24631446]
[1760890562584,4.26076013,190.65,190.61,5.93631446]
[1760890563973,3.58076013,190.65,190.62,0.69]
[1760890564473,4.26076013,190.65,190.62,0.69]
[1760890564672,22.88,190.68,190.6,21.94382413]
[1760890564874,26.46076013,190.68,190.63,4.27076013]
[1760890565071,4.26076013,190.67,190.61,36.4]
[1760890565276,3.58076013,190.66,190.62,0.69]
[1760890565575,4.26076013,190.66,190.63,0.69]
[1760890565872,3.58076013,190.66,190.62,5.24586053]
[1760890566078,4.26076013,190.65,190.62,5.24586053]
[1760890566283,4.26076013,190.65,190.62,5.93586053]
[1760890566589,4.26076013,190.65,190.62,5.24586053]
[1760890566792,4.26076013,190.64,190.62,5.24586053]
[1760890569589,0.68,190.64,190.62,5.24586053]
[1760890570277,0.68,190.64,190.61,37.09]
[1760890571295,0.68,190.64,190.61,42.33619579]
[1760890572097,4.29076013,190.65,190.61,42.33619579]
[1760890572403,3.58076013,190.65,190.61,41.64619579]
[1760890572588,3.58076013,190.66,190.62,5.94583412]
[1760890572789,3.58076013,190.66,190.63,0.7]
[1760890572999,4.29076013,190.66,190.63,0.7]
[1760890573505,4.29076013,190.66,190.62,5.24583412]
[1760890573678,4.29076013,190.66,190.62,5.94583412]
[1760890574597,0.69,190.65,190.62,5.94583412]
[1760890575109,3.58076013,190.66,190.62,5.94583412]
[1760890575291,4.27076013,190.66,190.62,5.94583412]
[1760890575476,3.58076013,190.66,190.62,5.94583412]
[1760890575798,0.69,190.65,190.62,5.24583412]
[1760890576182,3.58076013,190.64,190.61,41.64627313]
[1760890576381,10.48947534,190.67,190.61,42.34627313]
[1760890576610,8.8254978,190.67,190.62,0.7]
[1760890576911,0.69,190.66,190.63,0.7]
[1760890577110,3.58076013,190.64,190.61,36.4]
[1760890577417,3.58076013,190.62,190.58,0.7]
[1760890577586,3.58076013,190.59,190.55,42.44771347]
[1760890577785,3.58076013,190.58,190.56,0.7]
[1760890578103,7.19249824,190.69,190.57,7.16152026]
[1760890578282,1.99999999,190.71,190.68,3.58076013]
[1760890578633,15.77411467,190.68,190.55,5.34771347]
[1760890578908,6.67304004,190.7,190.56,1.99999999]
[1760890579109,22.44715471,190.7,190.56,1.99999999]
[1760890579411,13.1102837,190.69,190.57,1.99999999]
[1760890579593,6.67304004,190.7,190.68,7.16152026]
[1760890579902,22.88,190.67,190.6,3.58076013]
[1760890580082,15.12,190.68,190.66,3.58076013]
[1760890580284,15.12,190.68,190.67,3.58076013]
[1760890581100,18.35632243,190.67,190.6,3.58076013]
[1760890582204,48.87647521,190.66,190.6,3.58076013]
[1760890582421,18.35632243,190.67,190.65,3.58076013]
[1760890582628,102.5,190.66,190.6,3.58076013]
[1760890583726,107.74493863,190.66,190.65,3.58076013]
[1760890584526,118.62141384,190.66,190.65,3.58076013]
[1760890587422,141.50141384,190.66,190.65,3.58076013]
[1760890587917,70.00674382,190.66,190.65,3.58076013]
[1760890588216,36.25026861,190.66,190.65,3.58076013]
[1760890588923,102.5,190.66,190.65,3.58076013]
[1760890589115,80.36725747,190.66,190.65,3.58076013]
[1760890589424,103.24725747,190.66,190.65,3.58076013]
[1760890589600,97.73679871,190.66,190.65,7.16152026]
[1760890589807,22.88,190.66,190.65,7.16152026]
[1760890590021,10.87647521,190.69,190.65,7.16152026]
[1760890590329,6.67304004,190.7,190.68,7.16152026]
[1760890590530,6.32172,190.72,190.62,7.16152026]
[1760890590822,2.74095987,190.72,190.63,0.7]
[1760890592026,18.35439718,190.69,190.63,0.7]
[1760890592201,22.88,190.66,190.63,0.7]
[1760890592605,22.88,190.66,190.63,7.94736634]
[1760890592816,22.88,190.66,190.64,0.7]
[1760890593102,22.88,190.66,190.65,0.7]
[1760890593302,5.24411348,190.69,190.65,0.7]
[1760890593827,28.12411348,190.69,190.64,10.87647521]
[1760890594026,28.12411348,190.69,190.64,11.57647521]
[1760890594325,41.23439718,190.69,190.64,11.57647521]
[1760890594514,18.35439718,190.69,190.65,0.7]
[1760890594715,41.23439718,190.69,190.64,11.57647521]
[1760890595116,41.23439718,190.69,190.64,10.87647521]
[1760890595308,2.74155982,190.68,190.64,11.57647521]
[1760890595513,5.24466355,190.67,190.65,0.7]
[1760890595825,5.24466355,190.67,190.66,0.7]
[1760890596434,7.98599106,190.68,190.66,0.7]
[1760890596729,2.74155982,190.68,190.66,0.7]
[1760890596934,7.98599731,190.68,190.66,0.7]
[1760890598226,2.74155982,190.68,190.67,0.7]
[1760890598539,2.74155982,190.68,190.67,11.57647521]
[1760890599224,7.98594832,190.68,190.61,10.87647521]
[1760890599408,7.98594832,190.68,190.66,0.7]
[1760890599607,7.98594832,190.68,190.67,0.7]
[1760890603031,22.88,190.66,190.65,11.57647521]
[1760890603243,22.88,190.66,190.65,12.27647521]
[1760890604833,28.12472611,190.67,190.65,12.27647521]
[1760890605138,28.12472611,190.67,190.66,0.67]
[1760890606228,22.88,190.67,190.66,0.67]
[1760890606425,22.88,190.67,190.66,12.24647521]
[1760890607440,28.12466355,190.67,190.66,0.67]
[1760890608231,28.12466355,190.67,190.65,15.76996872]
[1760890608436,28.12466355,190.67,190.65,16.43996872]
[1760890608740,28.12466355,190.67,190.63,0.67]
[1760890608920,28.12466355,190.67,190.64,0.67]
[1760890609121,28.12466355,190.67,190.63,15.77162684]
[1760890609447,28.12466355,190.67,190.63,0.67]
[1760890610326,41.23632243,190.67,190.62,15.77162684]
[1760890610640,41.23632243,190.67,190.63,0.67]
[1760890611949,41.23632243,190.67,190.61,15.77162684]
[1760890612523,41.23632243,190.67,190.6,0.67]
[1760890617758,41.23632243,190.67,190.59,15.77162684]
[1760890618248,41.23632243,190.67,190.6,0.67]
[1760890621248,41.23632243,190.67,190.6,16.44162684]
[1760890621453,41.23632243,190.67,190.61,0.67]
[1760890622457,41.23632243,190.67,190.61,16.44162684]
[1760890622650,41.23632243,190.67,190.62,0.67]
[1760890622955,41.23632243,190.67,190.61,15.77162684]
[1760890623158,41.23632243,190.67,190.62,0.67]
[1760890623450,41.23632243,190.67,190.63,0.67]
[1760890623851,41.23632243,190.67,190.62,0.67]
[1760890624063,41.23632243,190.67,190.57,1.99999999]
[1760890624265,41.23632243,190.67,190.59,16.44162684]
[1760890624455,41.23632243,190.67,190.59,15.77162684]
[1760890624640,41.23632243,190.67,190.59,0.67]
[1760890625858,18.35824809,190.65,190.59,0.67]
[1760890626264,18.35824809,190.65,190.6,15.77411467]
[1760890626265,5.24521374,190.65,190.6,15.77411467]
[1760890626641,5.24521374,190.65,190.58,0.67]
[1760890626642,18.35824809,190.65,190.58,0.67]
[1760890626957,18.35824809,190.65,190.58,16.44494413]
[1760890627143,18.35824809,190.65,190.59,0.67]
[1760890627946,18.35824809,190.65,190.6,15.77494413]
[1760890628152,18.35824809,190.65,190.6,0.67]
[1760890628953,18.35824809,190.65,190.6,16.44494413]
[1760890629862,18.35824809,190.65,190.6,0.67]
[1760890632156,22.88,190.62,190.6,0.67]
[1760890632356,5.24631446,190.61,190.57,2.66999999]
[1760890632966,5.24631446,190.61,190.55,0.77]
[1760890633140,18.36210062,190.61,190.55,0.77]
[1760890633462,5.24631446,190.61,190.56,1.99999999]
[1760890633648,5.24631446,190.61,190.57,0.67]
[1760890634064,22.88,190.61,190.57,0.67]
[1760890634246,22.88,190.61,190.57,2.66999999]
[1760890634438,22.88,190.61,190.58,0.66]
[1760890634960,5.24564987,190.64,190.58,0.66]
[1760890635163,28.12564987,190.64,190.58,2.65999999]
[1760890635349,28.12564987,190.64,190.59,0.66]
[1760890635734,28.12564987,190.64,190.59,2.65999999]
[1760890635959,22.88,190.64,190.6,0.66]
[1760890636347,28.12557013,190.64,190.6,0.66]
[1760890637665,22.88,190.64,190.6,0.66]
[1760890638039,7.98715019,190.66,190.61,1.99999999]
[1760890638340,7.98715019,190.66,190.62,0.66]
[1760890638642,7.98715019,190.66,190.63,0.66]
[1760890639158,7.98715019,190.66,190.64,0.66]
[1760890639159,22.88,190.65,190.64,0.66]
[1760890639654,22.88,190.65,190.62,0.66]
[1760890639858,30.86717116,190.66,190.61,9.24712367]
[1760890640056,25.6221739,190.66,190.63,0.66]
[1760890640363,43.97954397,190.66,190.56,0.66]
[1760890640563,43.97954397,190.66,190.56,2.65999999]
[1760890640739,43.97954397,190.66,190.56,1.99999999]
[1760890640940,43.97954397,190.66,190.57,0.66]
[1760890641341,43.97954397,190.66,190.57,2.65999999]
[1760890641542,30.86719739,190.66,190.58,11.53647521]
[1760890641843,30.86719739,190.66,190.59,0.66]
[1760890642168,30.86719739,190.66,190.59,2.65999999]
[1760890642351,30.86719739,190.66,190.6,0.66]
[1760890647950,30.86719739,190.66,190.6,2.65999999]
[1760890648151,30.86719739,190.66,190.61,0.66]
[1760890648352,30.86719739,190.66,190.62,0.66]
[1760890648567,30.86719739,190.66,190.63,0.66]
[1760890649753,5.24411348,190.69,190.64,0.66]
[1760890650071,18.35439718,190.69,190.62,0.66]
[1760890650452,18.35439718,190.69,190.6,0.66]
[1760890652068,5.24521374,190.65,190.6,0.66]
[1760890652273,5.24521374,190.65,190.59,7.24679566]
[1760890652572,5.24521374,190.65,190.59,0.66]
[1760890655051,28.12565377,190.64,190.59,0.66]
[1760890655261,28.12565377,190.64,190.59,2.65999999]
[1760890655663,28.12565377,190.64,190.59,0.66]
[1760890655866,41.23937596,190.64,190.58,36.44]
[1760890656068,41.23937596,190.64,190.57,17.77411466]
[1760890656371,41.23937596,190.64,190.57,2.65999999]
[1760890657457,41.23937596,190.64,190.58,0.66]
[1760890660473,41.23937596,190.64,190.57,2.65999999]
[1760890660853,41.23937596,190.64,190.57,1.99999999]
[1760890661049,41.23937596,190.64,190.55,0.1]
[1760890661472,41.23937596,190.64,190.55,0.76]
[1760890662374,41.23937596,190.64,190.55,0.1]
[1760890662569,41.23937596,190.64,190.55,2.09999999]
[1760890662967,41.23937596,190.64,190.55,0.1]
[1760890664086,41.23937596,190.64,190.55,0.8]
[1760890668081,41.23937596,190.64,190.55,2.79999999]
[1760890668282,41.23937596,190.64,190.56,0.7]
[1760890670268,41.23937596,190.64,190.56,2.69999999]
[1760890673691,41.23937596,190.64,190.56,1.99999999]
[1760890673899,41.23937596,190.64,190.55,2.79999999]
[1760890674587,41.23937596,190.64,190.55,0.1]
[1760890676216,67.46682035,190.64,190.55,0.1]
[1760890680395,22.88,190.59,190.55,0.1]
[1760890681477,18.36113734,190.62,190.55,0.8]
[1760890681692,18.36113734,190.62,190.56,1.99999999]
[1760890681878,22.88,190.59,190.56,2.69999999]
[1760890682871,22.88,190.59,190.56,0.7]
[1760890683503,22.88,190.59,190.55,2.09999999]
[1760890683717,22.88,190.59,190.57,0.7]
[1760890684172,22.88,190.59,190.56,1.99999999]
[1760890684374,22.88,190.59,190.57,0.7]
[1760890684997,22.88,190.6,190.57,0.7]
[1760890685385,7.98883233,190.63,190.58,1.99999999]
[1760890685700,22.88,190.62,190.59,0.7]
[1760890685894,22.88,190.62,190.58,1.99999999]
[1760890686098,22.88,190.62,190.59,0.7]
[1760890687285,28.12608321,190.62,190.58,1.99999999]
[1760890687604,28.12608321,190.62,190.58,2.69999999]
[1760890687796,28.12608321,190.62,190.58,0.7]
[1760890687997,28.12608321,190.62,190.56,1.99999999]
[1760890688199,28.12608321,190.62,190.58,1.99999999]
[1760890688396,28.12608321,190.62,190.57,2.69999999]
[1760890688900,28.12608321,190.62,190.57,0.7]
[1760890689092,28.12608321,190.62,190.57,2.69999999]
[1760890689607,28.12608321,190.62,190.57,1.99999999]
[1760890689797,28.12608321,190.62,190.56,1.99999999]
[1760890690398,28.12608321,190.62,190.58,1.99999999]
[1760890690893,28.12608321,190.62,190.59,0.67]
[1760890691226,28.12608321,190.62,190.58,1.99999999]
[1760890691412,28.12608321,190.62,190.58,2.66999999]
[1760890692511,28.12608321,190.62,190.59,0.67]
[1760890693211,28.12608321,190.62,190.58,1.99999999]
[1760890693417,28.12608321,190.62,190.58,2.66999999]
[1760890694192,28.12608321,190.62,190.59,0.68]
[1760890695428,2.74288634,190.63,190.6,0.68]
[1760890695716,22.88,190.61,190.6,0.68]
[1760890695911,22.88,190.61,190.58,1.99999999]
[1760890696217,22.88,190.61,190.59,0.68]
[1760890696414,30.86865468,190.63,190.59,0.68]
[1760890696725,30.86865468,190.63,190.58,9.24764696]
[1760890696902,30.86865468,190.63,190.58,9.92764696]
[1760890698990,25.62288634,190.63,190.59,0.68]
[1760890699220,5.2443885,190.68,190.6,1.99999999]
[1760890699395,5.2443885,190.68,190.62,1.99999999]
[1760890699600,7.98597704,190.68,190.63,0.68]
[1760890700012,22.88,190.65,190.63,0.68]
[1760890700509,2.74158854,190.68,190.64,0.68]
[1760890700707,2.74158854,190.68,190.65,0.68]
[1760890700923,5.24415876,190.69,190.65,0.68]
[1760890701244,22.88,190.67,190.66,0.68]
[1760890701602,5.24415876,190.69,190.66,0.68]
[1760890701799,28.12415876,190.69,190.66,0.68]
[1760890702324,28.12415876,190.69,190.65,1.99999999]
[1760890702499,28.12415876,190.69,190.65,2.67999999]
[1760890702702,28.12415876,190.69,190.65,1.99999999]
[1760890703028,28.12415876,190.69,190.65,2.67999999]
[1760890703200,28.12415876,190.69,190.64,12.49472058]
[1760890703602,28.12415876,190.69,190.64,15.17472057]
[1760890703904,28.12415876,190.69,190.65,1.99999999]
[1760890704106,28.12415876,190.69,190.65,2.67999999]
[1760890704426,22.88,190.69,190.66,0.68]
[1760890705213,22.88,190.69,190.67,0.68]
[1760890705404,22.88,190.69,190.68,0.68]
[1760890705820,22.88,190.69,190.66,0.68]
[1760890706021,28.12414137,190.69,190.66,0.68]
[1760890706244,28.12414137,190.69,190.65,1.99999999]
[1760890706429,28.12414137,190.69,190.66,0.68]
[1760890708735,28.12414137,190.69,190.65,17.76831094]
[1760890708937,28.12414137,190.69,190.65,18.44831094]
[1760890709439,28.12414137,190.69,190.65,16.44831095]
[1760890709640,28.12414137,190.69,190.65,15.76831095]
[1760890709809,28.12414137,190.69,190.62,38.41999999]
[1760890710126,22.88,190.66,190.63,15.76996872]
[1760890710325,22.88,190.66,190.58,0.68]
[1760890710531,22.88,190.66,190.59,15.76996872]
[1760890710716,22.88,190.68,190.59,15.76996872]
[1760890711220,22.88,190.68,190.58,0.68]
[1760890711420,22.88,190.64,190.59,15.76996872]
[1760890711629,22.88,190.64,190.6,2.67999999]
[1760890712937,22.88,190.64,190.6,0.68]
[1760890713320,5.24576404,190.63,190.59,18.44996871]
[1760890713629,5.24576404,190.63,190.59,16.44996872]
[1760890713944,5.24576404,190.63,190.59,0.68]
[1760890715036,5.24576404,190.63,190.6,1.99999999]
[1760890715336,5.24576404,190.63,190.59,16.45411467]
[1760890715516,5.24576404,190.63,190.6,1.99999999]
[1760890716637,5.24576404,190.63,190.59,16.45411467]
[1760890717736,5.24576404,190.63,190.59,18.45411466]
[1760890717943,5.24576404,190.63,190.6,0.68]
[1760890718844,28.12553183,190.64,190.6,2.67999999]
[1760890719050,28.12553183,190.64,190.61,0.68]
[1760890720239,28.12553183,190.64,190.62,0.68]
[1760890720424,28.12553183,190.64,190.63,0.68]
[1760890720945,28.12553183,190.64,190.61,0.68]
[1760890721717,28.12553183,190.64,190.62,0.68]
[1760890722745,13.11150986,190.68,190.62,0.68]
[1760890722928,15.85060186,190.71,190.63,10.87647521]
[1760890723137,22.88,190.67,190.64,0.68]
[1760890723336,18.3534347,190.7,190.63,17.76913978]
[1760890723539,22.88,190.67,190.63,2.67999999]
[1760890723736,22.88,190.67,190.64,16.44996872]
[1760890724041,28.12489263,190.67,190.64,15.76996872]
[1760890724424,28.12489263,190.67,190.64,16.41996872]
[1760890725748,28.12489263,190.67,190.64,15.76996872]
[1760890725946,28.12489263,190.67,190.62,37.05]
[1760890726149,28.12489263,190.67,190.63,18.41996871]
[1760890727749,28.12489263,190.67,190.63,16.41996872]
[1760890729049,28.12489263,190.67,190.61,1.99999999]
[1760890729246,28.12489263,190.67,190.63,0.65]
[1760890729437,28.12489263,190.67,190.61,18.42162683]
[1760890729849,28.12489263,190.67,190.62,0.65]
[1760890730637,28.12489263,190.67,190.63,0.65]
[1760890736057,41.23655151,190.67,190.61,18.42162683]
[1760890736361,41.23655151,190.67,190.61,18.42245602]
[1760890737957,41.23655151,190.67,190.62,0.65]
[1760890738256,41.23655151,190.67,190.61,17.77245602]
[1760890738441,41.23655151,190.67,190.62,0.65]
[1760890742174,41.23655151,190.67,190.61,17.77245602]
[1760890742357,5.24576404,190.63,190.61,2.64999999]
[1760890742557,5.24576404,190.63,190.62,0.65]
[1760890743276,28.12551227,190.64,190.62,0.65]
[1760890743565,22.88,190.64,190.62,0.65]
[1760890743774,22.88,190.64,190.63,0.65]
[1760890744182,22.88,190.64,190.61,1.99999999]
[1760890744480,28.12498394,190.66,190.62,2.64999999]
[1760890744778,28.12498394,190.66,190.63,0.65]
[1760890747586,28.12498394,190.66,190.64,0.65]
[1760890748891,28.12498394,190.66,190.63,0.65]
[1760890750271,28.12498394,190.66,190.62,17.77162683]
[1760890750587,28.12498394,190.66,190.62,0.7]
[1760890754675,28.12498394,190.66,190.62,2.69999999]
[1760890754870,28.12498394,190.66,190.62,0.7]
[1760890756592,28.12498394,190.66,190.62,2.69999999]
[1760890756774,28.12498394,190.66,190.62,1.99999999]
[1760890756970,28.12498394,190.66,190.62,2.64999999]
[1760890758403,28.12498394,190.66,190.63,0.65]
[1760890758701,28.12498394,190.66,190.64,0.65]
[1760890758886,22.88,190.66,190.65,0.65]
[1760890762394,5.24387428,190.7,190.65,0.65]
[1760890762799,22.88,190.69,190.64,10.87647521]
[1760890762973,22.88,190.69,190.65,0.65]
[1760890763378,22.88,190.69,190.63,7.24387427]
[1760890763581,22.88,190.69,190.65,0.65]
[1760890763793,22.88,190.69,190.66,0.65]
[1760890764006,5.2443885,190.68,190.64,0.65]
[1760890764191,5.2443885,190.68,190.65,0.65]
[1760890765312,5.2443885,190.68,190.63,1.99999999]
[1760890765532,5.2443885,190.68,190.65,0.65]
[1760890766212,5.2443885,190.68,190.66,0.65]
[1760890767424,5.2443885,190.68,190.65,1.99999999]
[1760890767628,28.12416498,190.69,190.66,0.65]
[1760890767806,22.88,190.67,190.66,0.65]
[1760890768010,22.88,190.67,190.65,1.99999999]
[1760890768204,22.88,190.67,190.65,2.64999999]
[1760890769110,28.1248365,190.67,190.65,2.64999999]
[1760890771634,28.1248365,190.67,190.63,1.99999999]
[1760890771815,28.1248365,190.67,190.64,0.65]
[1760890772217,28.1248365,190.67,190.65,0.65]
[1760890775736,13.10959622,190.7,190.64,1.99999999]
[1760890776030,13.10959622,190.7,190.64,2.64999999]
[1760890776234,13.10959622,190.7,190.64,0.65]
[1760890776529,13.10959622,190.7,190.64,2.64999999]
[1760890776835,22.88,190.67,190.64,2.64999999]
[1760890777542,22.88,190.67,190.64,1.99999999]
[1760890777754,28.12491236,190.67,190.65,0.65]
[1760890778525,22.88,190.67,190.66,0.65]
[1760890778911,28.12470284,190.67,190.64,1.99999999]
[1760890779224,28.12470284,190.67,190.59,1.99999999]
[1760890779433,28.12470284,190.67,190.59,0.65]
[1760890780309,41.23636172,190.67,190.59,0.65]
[1760890780518,41.23636172,190.67,190.61,1.99999999]
[1760890780720,41.23636172,190.67,190.59,2.64999999]
[1760890781214,41.23636172,190.67,190.59,0.65]
[1760890781427,41.23636172,190.67,190.6,1.99999999]
[1760890783133,41.23636172,190.67,190.59,2.64999999]
[1760890783339,41.23636172,190.67,190.6,1.99999999]
[1760890783741,41.23636172,190.67,190.59,1.99999999]
[1760890786040,41.23636172,190.67,190.59,2.66999999]
[1760890786238,41.23636172,190.67,190.6,0.67]
[1760890786422,41.23636172,190.67,190.6,2.66999999]
[1760890787423,41.23636172,190.67,190.6,0.67]
[1760890787622,41.23636172,190.67,190.6,2.66999999]
[1760890790239,41.23636172,190.67,190.6,0.67]
[1760890790446,41.23636172,190.67,190.6,2.66999999]
[1760890790942,41.23636172,190.67,190.59,1.99999999]